[Event "Titled Tuesday Blitz January 10 Early 2023"]
[White "Golizadeh, Asghar"]
[Black "Seo, Jung Min"]
[WhiteFideId "12505269"]
[BlackFideId "1734687"]
[WhiteElo "2455"]
[BlackElo "2494"]
[Result "0-1"]
[Round "07"]
[TimeControl "180+2"]
[Date "2023.01.10"]
[WhiteClock "0:00:04"]
[BlackClock "0:00:47"]

1. e4 {[%clk 0:03:00]}  c6 {[%clk 0:02:59]} 2. Nc3 {[%clk 0:02:54]}  d5 {[%clk 0:02:59]} 3. Nf3 {[%clk 0:02:54]}  dxe4 {[%clk 0:02:57]} 4. Nxe4 {[%clk 0:02:54]}  Nf6 {[%clk 0:02:58]} 5. Qe2 {[%clk 0:02:54]}  Nxe4 {[%clk 0:02:57]} 6. Qxe4 {[%clk 0:02:54]}  Nd7 {[%clk 0:02:56]} 7. Bc4 {[%clk 0:02:54]}  Nf6 {[%clk 0:02:56]} 8. Ne5 {[%clk 0:02:54]}  e6 {[%clk 0:02:56]} 9. Qe2 {[%clk 0:02:54]}  b5 {[%clk 0:02:47]} 10. Nxc6 {[%clk 0:02:51]}  Qc7 {[%clk 0:02:46]} 11. Bxb5 {[%clk 0:02:50]}  a6 {[%clk 0:02:46]} 12. Ba4 {[%clk 0:02:28]}  Bd7 {[%clk 0:02:46]} 13. Qc4 {[%clk 0:02:28]}  Nd5 {[%clk 0:02:36]} 14. d3 {[%clk 0:01:29]}  Nb6 {[%clk 0:02:35]} 15. Bf4 {[%clk 0:01:29]}  Qc8 {[%clk 0:02:36]} 16. Qe4 {[%clk 0:01:23]}  Nxa4 {[%clk 0:02:35]} 17. Ne5 {[%clk 0:01:23]}  Nc5 {[%clk 0:02:25]} 18. Qf3 {[%clk 0:01:20]}  Be7 {[%clk 0:02:08]} 19. Bg5 {[%clk 0:01:12]}  Rf8 {[%clk 0:01:53]} 20. Bxe7 {[%clk 0:01:09]}  Kxe7 {[%clk 0:01:53]} 21. Qe3 {[%clk 0:01:09]}  f6 {[%clk 0:01:52]} 22. Nc4 {[%clk 0:01:08]}  Qc7 {[%clk 0:01:49]} 23. d4 {[%clk 0:01:05]}  Nb7 {[%clk 0:01:47]} 24. Nd2 {[%clk 0:00:37]}  Qxc2 {[%clk 0:01:41]} 25. O-O {[%clk 0:00:37]}  Rfc8 {[%clk 0:01:34]} 26. Qa3+ {[%clk 0:00:19]}  Kf7 {[%clk 0:01:34]} 27. Nf3 {[%clk 0:00:19]}  Qc6 {[%clk 0:01:24]} 28. Rfe1 {[%clk 0:00:19]}  Kg8 {[%clk 0:01:23]} 29. d5 {[%clk 0:00:18]}  Qxd5 {[%clk 0:01:15]} 30. Rad1 {[%clk 0:00:17]}  Qc6 {[%clk 0:01:15]} 31. Nd4 {[%clk 0:00:17]}  Qc5 {[%clk 0:01:14]} 32. Qf3 {[%clk 0:00:16]}  Qd5 {[%clk 0:01:10]} 33. Qg3 {[%clk 0:00:15]}  Qg5 {[%clk 0:01:04]} 34. Qf3 {[%clk 0:00:14]}  Nd8 {[%clk 0:01:00]} 35. g3 {[%clk 0:00:12]}  Qg6 {[%clk 0:00:56]} 36. Ne2 {[%clk 0:00:11]}  Qf7 {[%clk 0:00:51]} 37. Nf4 {[%clk 0:00:11]}  Bc6 {[%clk 0:00:51]} 38. Qa3 {[%clk 0:00:11]}  e5 {[%clk 0:00:50]} 39. Nd3 {[%clk 0:00:10]}  Ne6 {[%clk 0:00:50]} 40. f4 {[%clk 0:00:10]}  Nd4 {[%clk 0:00:49]} 41. Re3 {[%clk 0:00:07]}  Qd5 {[%clk 0:00:48]} 42. Kf1 {[%clk 0:00:03]}  Qg2+ {[%clk 0:00:47]} 43. Ke1 {[%clk 0:00:04]}  Nc2# {[%clk 0:00:47]} 0-1


[Site "https://www.chess.com"]

[Event "Titled Tuesday Blitz January 10 Early 2023"]
[White "Dardha, Daniel"]
[Black "Sourath Biswas"]
[WhiteFideId "240990"]
[BlackFideId "35091484"]
[WhiteElo "2631"]
[BlackElo "2281"]
[Result "1-0"]
[Round "07"]
[TimeControl "180+2"]
[Date "2023.01.10"]
[WhiteClock "0:01:10"]
[BlackClock "0:00:02"]

1. Na3 {[%clk 0:03:00]}  d5 {[%clk 0:02:57]} 2. c3 {[%clk 0:02:55]}  c5 {[%clk 0:02:57]} 3. Nc2 {[%clk 0:02:54]}  Nf6 {[%clk 0:02:54]} 4. d4 {[%clk 0:02:53]}  b6 {[%clk 0:02:40]} 5. g3 {[%clk 0:02:49]}  Bb7 {[%clk 0:02:40]} 6. Ne3 {[%clk 0:02:49]}  e6 {[%clk 0:02:38]} 7. Ng2 {[%clk 0:02:49]}  Bd6 {[%clk 0:02:38]} 8. Bf4 {[%clk 0:02:49]}  Nc6 {[%clk 0:02:37]} 9. Nf3 {[%clk 0:02:49]}  O-O {[%clk 0:02:37]} 10. e3 {[%clk 0:02:49]}  Ne4 {[%clk 0:02:25]} 11. Bb5 {[%clk 0:02:48]}  Ne7 {[%clk 0:02:21]} 12. Bxd6 {[%clk 0:02:46]}  Qxd6 {[%clk 0:02:20]} 13. O-O {[%clk 0:02:45]}  Ng6 {[%clk 0:02:18]} 14. Bd3 {[%clk 0:02:41]}  f5 {[%clk 0:02:12]} 15. Nf4 {[%clk 0:02:40]}  Ne7 {[%clk 0:01:40]} 16. Bc2 {[%clk 0:02:19]}  Ba6 {[%clk 0:01:32]} 17. Re1 {[%clk 0:02:18]}  g5 {[%clk 0:01:27]} 18. Bxe4 {[%clk 0:02:13]}  gxf4 {[%clk 0:01:27]} 19. Bd3 {[%clk 0:02:12]}  Bxd3 {[%clk 0:01:26]} 20. Qxd3 {[%clk 0:02:13]}  fxg3 {[%clk 0:01:25]} 21. hxg3 {[%clk 0:02:14]}  Ng6 {[%clk 0:01:25]} 22. c4 {[%clk 0:02:04]}  Rad8 {[%clk 0:01:01]} 23. dxc5 {[%clk 0:02:01]}  Qxc5 {[%clk 0:00:59]} 24. cxd5 {[%clk 0:02:01]}  Rxd5 {[%clk 0:01:00]} 25. Qb3 {[%clk 0:02:00]}  Rc8 {[%clk 0:00:37]} 26. Rad1 {[%clk 0:01:58]}  Ne7 {[%clk 0:00:25]} 27. e4 {[%clk 0:01:39]}  fxe4 {[%clk 0:00:10]} 28. Rxe4 {[%clk 0:01:40]}  Rxd1+ {[%clk 0:00:10]} 29. Qxd1 {[%clk 0:01:41]}  Qc1 {[%clk 0:00:03]} 30. Qxc1 {[%clk 0:01:41]}  Rxc1+ {[%clk 0:00:04]} 31. Kg2 {[%clk 0:01:42]}  Rc2 {[%clk 0:00:04]} 32. Rxe6 {[%clk 0:01:42]}  Kf8 {[%clk 0:00:04]} 33. a4 {[%clk 0:01:19]}  Rxb2 {[%clk 0:00:03]} 34. a5 {[%clk 0:01:19]}  bxa5 {[%clk 0:00:03]} 35. Ra6 {[%clk 0:01:20]}  Rb7 {[%clk 0:00:02]} 36. Nd4 {[%clk 0:01:18]}  Kg7 {[%clk 0:00:02]} 37. Rxa5 {[%clk 0:01:16]}  Ng6 {[%clk 0:00:02]} 38. Nc6 {[%clk 0:01:15]}  Rc7 {[%clk 0:00:01]} 39. Nxa7 {[%clk 0:01:15]}  Ne5 {[%clk 0:00:01]} 40. Nb5 {[%clk 0:01:10]}  Nf7 {[%clk 0:00:02]} 41. Nxc7 {[%clk 0:01:10]} 1-0


[Site "https://www.chess.com"]

[Event "Titled Tuesday Blitz January 10 Early 2023"]
[White "Howell, David W L"]
[Black "Melian, Juan Sebastian"]
[WhiteFideId "410608"]
[BlackFideId "3706575"]
[WhiteElo "2677"]
[BlackElo "2293"]
[Result "1-0"]
[Round "07"]
[TimeControl "180+2"]
[Date "2023.01.10"]
[WhiteClock "0:01:11"]
[BlackClock "0:01:00"]

1. e4 {[%clk 0:02:55]}  c5 {[%clk 0:02:56]} 2. Nf3 {[%clk 0:02:47]}  e6 {[%clk 0:02:56]} 3. Nc3 {[%clk 0:02:46]}  a6 {[%clk 0:02:55]} 4. g3 {[%clk 0:02:45]}  b5 {[%clk 0:02:54]} 5. Bg2 {[%clk 0:02:45]}  Bb7 {[%clk 0:02:53]} 6. Qe2 {[%clk 0:02:45]}  Qc7 {[%clk 0:02:51]} 7. O-O {[%clk 0:02:44]}  Nf6 {[%clk 0:02:48]} 8. d3 {[%clk 0:02:31]}  d6 {[%clk 0:02:35]} 9. Bf4 {[%clk 0:02:22]}  Nbd7 {[%clk 0:02:30]} 10. Rad1 {[%clk 0:02:23]}  Be7 {[%clk 0:02:29]} 11. a4 {[%clk 0:02:16]}  b4 {[%clk 0:02:27]} 12. Nb1 {[%clk 0:02:14]}  O-O {[%clk 0:02:28]} 13. Nbd2 {[%clk 0:02:02]}  h6 {[%clk 0:02:15]} 14. e5 {[%clk 0:02:00]}  dxe5 {[%clk 0:02:14]} 15. Bxe5 {[%clk 0:01:57]}  Nxe5 {[%clk 0:02:01]} 16. Qxe5 {[%clk 0:01:53]}  Bd6 {[%clk 0:01:58]} 17. Qe2 {[%clk 0:01:51]}  Bc6 {[%clk 0:01:56]} 18. Ra1 {[%clk 0:01:47]}  Nd7 {[%clk 0:01:42]} 19. Nc4 {[%clk 0:01:45]}  Nb6 {[%clk 0:01:42]} 20. Nxb6 {[%clk 0:01:37]}  Qxb6 {[%clk 0:01:36]} 21. Nd2 {[%clk 0:01:36]}  Rad8 {[%clk 0:01:24]} 22. Nc4 {[%clk 0:01:34]}  Qc7 {[%clk 0:01:24]} 23. Bxc6 {[%clk 0:01:33]}  Qxc6 {[%clk 0:01:24]} 24. Qe4 {[%clk 0:01:29]}  Qc7 {[%clk 0:01:03]} 25. Rae1 {[%clk 0:01:24]}  Be7 {[%clk 0:01:03]} 26. f4 {[%clk 0:01:15]}  Bf6 {[%clk 0:01:03]} 27. Re2 {[%clk 0:01:11]}  Bxb2 {[%clk 0:01:00]} 28. Nxb2 {[%clk 0:01:11]} 1-0


[Site "https://www.chess.com"]

[Event "Titled Tuesday Blitz January 10 Early 2023"]
[White "Rustemov, Alexander"]
[Black "Seemann, Jakub"]
[WhiteFideId "4119002"]
[BlackFideId "21874697"]
[WhiteElo "2525"]
[BlackElo "2446"]
[Result "0-1"]
[Round "07"]
[TimeControl "180+2"]
[Date "2023.01.10"]
[WhiteClock "0:00:04"]
[BlackClock "0:00:05"]

1. d4 {[%clk 0:02:54]}  e6 {[%clk 0:03:00]} 2. c4 {[%clk 0:02:54]}  Nf6 {[%clk 0:03:00]} 3. Nf3 {[%clk 0:02:53]}  d5 {[%clk 0:03:01]} 4. cxd5 {[%clk 0:02:51]}  exd5 {[%clk 0:03:00]} 5. Nc3 {[%clk 0:02:51]}  c6 {[%clk 0:03:00]} 6. Bf4 {[%clk 0:02:48]}  Bg4 {[%clk 0:02:54]} 7. e3 {[%clk 0:02:45]}  Bd6 {[%clk 0:02:53]} 8. Bxd6 {[%clk 0:02:41]}  Qxd6 {[%clk 0:02:54]} 9. h3 {[%clk 0:02:41]}  Bxf3 {[%clk 0:02:55]} 10. Qxf3 {[%clk 0:02:40]}  O-O {[%clk 0:02:54]} 11. Bd3 {[%clk 0:02:39]}  Nbd7 {[%clk 0:02:54]} 12. O-O {[%clk 0:02:38]}  a5 {[%clk 0:02:55]} 13. Rab1 {[%clk 0:02:29]}  a4 {[%clk 0:02:55]} 14. a3 {[%clk 0:02:27]}  b5 {[%clk 0:02:54]} 15. Ne2 {[%clk 0:02:18]}  Nb6 {[%clk 0:02:53]} 16. Qf4 {[%clk 0:02:11]}  Qxf4 {[%clk 0:02:52]} 17. Nxf4 {[%clk 0:02:10]}  Rfe8 {[%clk 0:02:53]} 18. Rfc1 {[%clk 0:02:05]}  Nc4 {[%clk 0:02:53]} 19. Rc2 {[%clk 0:02:02]}  Nd7 {[%clk 0:02:51]} 20. Bf1 {[%clk 0:01:56]}  g6 {[%clk 0:02:50]} 21. Nd3 {[%clk 0:01:56]}  f5 {[%clk 0:02:50]} 22. g3 {[%clk 0:01:47]}  Kg7 {[%clk 0:02:46]} 23. Re1 {[%clk 0:01:44]}  h6 {[%clk 0:02:38]} 24. Rce2 {[%clk 0:01:40]}  h5 {[%clk 0:02:37]} 25. f4 {[%clk 0:01:37]}  Nf6 {[%clk 0:02:32]} 26. Ne5 {[%clk 0:01:35]}  Rac8 {[%clk 0:02:29]} 27. Bg2 {[%clk 0:01:28]}  Ne4 {[%clk 0:02:30]} 28. Kh2 {[%clk 0:01:26]}  Ned6 {[%clk 0:02:25]} 29. Bf3 {[%clk 0:01:22]}  Nxe5 {[%clk 0:02:24]} 30. dxe5 {[%clk 0:01:19]}  Nc4 {[%clk 0:02:25]} 31. g4 {[%clk 0:01:17]}  hxg4 {[%clk 0:02:25]} 32. hxg4 {[%clk 0:01:17]}  fxg4 {[%clk 0:01:56]} 33. Bxg4 {[%clk 0:01:17]}  Rb8 {[%clk 0:01:57]} 34. Bd7 {[%clk 0:01:13]}  Rh8+ {[%clk 0:01:54]} 35. Kg3 {[%clk 0:01:14]}  Rb6 {[%clk 0:01:50]} 36. Rg1 {[%clk 0:01:06]}  Kf7 {[%clk 0:01:50]} 37. Kf3 {[%clk 0:01:05]}  Ke7 {[%clk 0:01:33]} 38. Bg4 {[%clk 0:01:02]}  b4 {[%clk 0:01:34]} 39. axb4 {[%clk 0:01:00]}  Rxb4 {[%clk 0:01:34]} 40. Ra1 {[%clk 0:00:34]}  Ra8 {[%clk 0:01:24]} 41. Ra2 {[%clk 0:00:33]}  Rab8 {[%clk 0:01:20]} 42. Rh2 {[%clk 0:00:33]}  Rf8 {[%clk 0:01:07]} 43. e6 {[%clk 0:00:27]}  Ne5+ {[%clk 0:01:00]} 44. Kg3 {[%clk 0:00:27]}  Nxg4 {[%clk 0:01:01]} 45. Kxg4 {[%clk 0:00:28]}  Kxe6 {[%clk 0:01:01]} 46. Rh6 {[%clk 0:00:28]}  Kf6 {[%clk 0:00:59]} 47. Kf3 {[%clk 0:00:27]}  c5 {[%clk 0:00:54]} 48. Kg4 {[%clk 0:00:23]}  Rfb8 {[%clk 0:00:51]} 49. Ra1 {[%clk 0:00:19]}  Re4 {[%clk 0:00:45]} 50. Rd1 {[%clk 0:00:18]}  d4 {[%clk 0:00:39]} 51. exd4 {[%clk 0:00:16]}  Rxd4 {[%clk 0:00:39]} 52. Rc1 {[%clk 0:00:15]}  Rbb4 {[%clk 0:00:31]} 53. Rxc5 {[%clk 0:00:14]}  Rxf4+ {[%clk 0:00:31]} 54. Kg3 {[%clk 0:00:14]}  Rg4+ {[%clk 0:00:31]} 55. Kf3 {[%clk 0:00:14]}  Rgc4 {[%clk 0:00:21]} 56. Rxc4 {[%clk 0:00:12]}  Rxc4 {[%clk 0:00:22]} 57. Rh8 {[%clk 0:00:12]}  Rb4 {[%clk 0:00:22]} 58. Ra8 {[%clk 0:00:12]}  Kg5 {[%clk 0:00:20]} 59. Ra5+ {[%clk 0:00:11]}  Kh4 {[%clk 0:00:20]} 60. Ra8 {[%clk 0:00:11]}  Rb3+ {[%clk 0:00:12]} 61. Ke4 {[%clk 0:00:11]}  Rxb2 {[%clk 0:00:09]} 62. Rxa4 {[%clk 0:00:11]}  g5 {[%clk 0:00:04]} 63. Kf3+ {[%clk 0:00:10]}  Kh3 {[%clk 0:00:05]} 64. Ra8 {[%clk 0:00:08]}  g4+ {[%clk 0:00:04]} 65. Kf4 {[%clk 0:00:08]}  Rf2+ {[%clk 0:00:04]} 66. Ke3 {[%clk 0:00:08]}  Rf7 {[%clk 0:00:04]} 67. Rh8+ {[%clk 0:00:07]}  Kg2 {[%clk 0:00:04]} 68. Rg8 {[%clk 0:00:07]}  g3 {[%clk 0:00:04]} 69. Rg6 {[%clk 0:00:06]}  Kh2 {[%clk 0:00:05]} 70. Rh6+ {[%clk 0:00:06]}  Kg1 {[%clk 0:00:05]} 71. Rg6 {[%clk 0:00:07]}  g2 {[%clk 0:00:05]} 72. Ke2 {[%clk 0:00:06]}  Re7+ {[%clk 0:00:05]} 73. Kf3 {[%clk 0:00:06]}  Kf1 {[%clk 0:00:04]} 74. Rxg2 {[%clk 0:00:02]}  Rf7+ {[%clk 0:00:04]} 75. Kg3 {[%clk 0:00:02]}  Rg7+ {[%clk 0:00:04]} 76. Kh2 {[%clk 0:00:03]}  Rxg2+ {[%clk 0:00:04]} 77. Kh1 {[%clk 0:00:03]}  Rg3 {[%clk 0:00:04]} 78. Kh2 {[%clk 0:00:04]}  Re3 {[%clk 0:00:05]} 0-1


[Site "https://www.chess.com"]

[Event "Titled Tuesday Blitz January 10 Early 2023"]
[White "Pak, Yevgeniy"]
[Black "Bilych, Olexiy"]
[WhiteFideId "14201712"]
[BlackFideId "14156504"]
[WhiteElo "2384"]
[BlackElo "2441"]
[Result "1/2-1/2"]
[Round "07"]
[TimeControl "180+2"]
[Date "2023.01.10"]
[WhiteClock "0:00:04"]
[BlackClock "0:00:06"]

1. e4 {[%clk 0:03:00]}  e5 {[%clk 0:02:59]} 2. Bc4 {[%clk 0:02:59]}  Nf6 {[%clk 0:02:59]} 3. d3 {[%clk 0:02:59]}  c6 {[%clk 0:02:59]} 4. Nf3 {[%clk 0:02:58]}  d5 {[%clk 0:02:59]} 5. Bb3 {[%clk 0:02:57]}  Bb4+ {[%clk 0:02:59]} 6. c3 {[%clk 0:02:56]}  Bd6 {[%clk 0:02:58]} 7. Nbd2 {[%clk 0:02:56]}  O-O {[%clk 0:02:56]} 8. O-O {[%clk 0:02:56]}  a5 {[%clk 0:02:57]} 9. Re1 {[%clk 0:02:53]}  Re8 {[%clk 0:02:53]} 10. h3 {[%clk 0:02:51]}  Na6 {[%clk 0:02:47]} 11. d4 {[%clk 0:02:40]}  dxe4 {[%clk 0:02:38]} 12. Nxe4 {[%clk 0:02:39]}  Nxe4 {[%clk 0:02:39]} 13. Rxe4 {[%clk 0:02:39]}  Bf5 {[%clk 0:02:39]} 14. Re1 {[%clk 0:02:21]}  exd4 {[%clk 0:02:27]} 15. Nxd4 {[%clk 0:02:15]}  Bg6 {[%clk 0:02:26]} 16. Be3 {[%clk 0:02:13]}  Nc5 {[%clk 0:02:18]} 17. Bc2 {[%clk 0:02:12]}  Qf6 {[%clk 0:02:18]} 18. Nf3 {[%clk 0:02:07]}  Bh5 {[%clk 0:01:51]} 19. Qd4 {[%clk 0:02:05]}  Qxd4 {[%clk 0:01:47]} 20. Nxd4 {[%clk 0:01:57]}  Bg6 {[%clk 0:01:38]} 21. Nf5 {[%clk 0:01:57]}  Bf8 {[%clk 0:01:36]} 22. g4 {[%clk 0:01:53]}  Rad8 {[%clk 0:01:35]} 23. Rad1 {[%clk 0:01:52]}  f6 {[%clk 0:01:29]} 24. b4 {[%clk 0:01:30]}  axb4 {[%clk 0:01:22]} 25. cxb4 {[%clk 0:01:31]}  Ne6 {[%clk 0:01:08]} 26. Bb3 {[%clk 0:01:29]}  Rxd1 {[%clk 0:01:06]} 27. Rxd1 {[%clk 0:01:29]}  Bf7 {[%clk 0:00:51]} 28. a3 {[%clk 0:01:24]}  Rd8 {[%clk 0:00:45]} 29. Re1 {[%clk 0:00:56]}  Nc7 {[%clk 0:00:33]} 30. Bxf7+ {[%clk 0:00:53]}  Kxf7 {[%clk 0:00:34]} 31. Bb6 {[%clk 0:00:52]}  Rd7 {[%clk 0:00:34]} 32. Bxc7 {[%clk 0:00:48]}  Rxc7 {[%clk 0:00:35]} 33. Kg2 {[%clk 0:00:47]}  g6 {[%clk 0:00:34]} 34. Ne3 {[%clk 0:00:46]}  Rd7 {[%clk 0:00:34]} 35. Rb1 {[%clk 0:00:44]}  Rd4 {[%clk 0:00:29]} 36. Rb3 {[%clk 0:00:43]}  Ke6 {[%clk 0:00:28]} 37. Kf3 {[%clk 0:00:43]}  f5 {[%clk 0:00:27]} 38. Rc3 {[%clk 0:00:40]}  Bd6 {[%clk 0:00:25]} 39. gxf5+ {[%clk 0:00:24]}  gxf5 {[%clk 0:00:25]} 40. Nc4 {[%clk 0:00:22]}  Rf4+ {[%clk 0:00:20]} 41. Ke2 {[%clk 0:00:22]}  Bc7 {[%clk 0:00:17]} 42. Re3+ {[%clk 0:00:18]}  Kf6 {[%clk 0:00:17]} 43. Nd2 {[%clk 0:00:16]}  Bb6 {[%clk 0:00:15]} 44. Rf3 {[%clk 0:00:15]}  Rd4 {[%clk 0:00:15]} 45. Nb3 {[%clk 0:00:12]}  Rd5 {[%clk 0:00:15]} 46. a4 {[%clk 0:00:10]}  Ke5 {[%clk 0:00:12]} 47. Rc3 {[%clk 0:00:10]}  f4 {[%clk 0:00:12]} 48. a5 {[%clk 0:00:09]}  Ba7 {[%clk 0:00:11]} 49. Nd2 {[%clk 0:00:08]}  Kf5 {[%clk 0:00:11]} 50. Nf3 {[%clk 0:00:08]}  h5 {[%clk 0:00:11]} 51. Rc4 {[%clk 0:00:08]}  Rd7 {[%clk 0:00:10]} 52. a6 {[%clk 0:00:08]}  Re7+ {[%clk 0:00:10]} 53. Kd3 {[%clk 0:00:07]}  bxa6 {[%clk 0:00:08]} 54. Rxc6 {[%clk 0:00:08]}  Bxf2 {[%clk 0:00:08]} 55. Rxa6 {[%clk 0:00:08]}  Re3+ {[%clk 0:00:08]} 56. Kd2 {[%clk 0:00:08]}  Rxf3 {[%clk 0:00:08]} 57. Ke2 {[%clk 0:00:08]}  Rxh3 {[%clk 0:00:06]} 58. Kxf2 {[%clk 0:00:08]}  Rb3 {[%clk 0:00:07]} 59. Rb6 {[%clk 0:00:08]}  h4 {[%clk 0:00:07]} 60. Rb8 {[%clk 0:00:07]}  h3 {[%clk 0:00:06]} 61. b5 {[%clk 0:00:06]}  Rb2+ {[%clk 0:00:04]} 62. Kg1 {[%clk 0:00:06]}  Kg4 {[%clk 0:00:04]} 63. b6 {[%clk 0:00:06]}  Kf3 {[%clk 0:00:03]} 64. b7 {[%clk 0:00:05]}  Rb1+ {[%clk 0:00:04]} 65. Kh2 {[%clk 0:00:05]}  Ke3 {[%clk 0:00:02]} 66. Re8+ {[%clk 0:00:05]}  Kf2 {[%clk 0:00:02]} 67. b8=Q {[%clk 0:00:06]}  Rxb8 {[%clk 0:00:03]} 68. Rxb8 {[%clk 0:00:06]}  f3 {[%clk 0:00:03]} 69. Re8 {[%clk 0:00:05]}  Kf1 {[%clk 0:00:03]} 70. Kxh3 {[%clk 0:00:06]}  f2 {[%clk 0:00:04]} 71. Rg8 {[%clk 0:00:04]}  Ke1 {[%clk 0:00:04]} 72. Re8+ {[%clk 0:00:04]}  Kf1 {[%clk 0:00:04]} 73. Kg3 {[%clk 0:00:04]}  Kg1 {[%clk 0:00:05]} 74. Rf8 {[%clk 0:00:04]}  f1=Q {[%clk 0:00:05]} 75. Rxf1+ {[%clk 0:00:04]}  Kxf1 {[%clk 0:00:06]} 1/2-1/2


[Site "https://www.chess.com"]

[Event "Titled Tuesday Blitz January 10 Early 2023"]
[White "Wagner, Dennis"]
[Black "Fisher_TheGalactic"]
[WhiteFideId "24650684"]
[WhiteElo "2595"]
[BlackElo "2530"]
[Result "1-0"]
[Round "07"]
[TimeControl "180+2"]
[Date "2023.01.10"]
[WhiteClock "0:00:14"]
[BlackClock "0:00:02"]

1. d4 {[%clk 0:03:00]}  b6 {[%clk 0:03:00]} 2. e4 {[%clk 0:03:00]}  Bb7 {[%clk 0:03:01]} 3. Bd3 {[%clk 0:03:01]}  e6 {[%clk 0:03:00]} 4. Nf3 {[%clk 0:03:01]}  d5 {[%clk 0:03:00]} 5. e5 {[%clk 0:03:00]}  c5 {[%clk 0:03:00]} 6. c3 {[%clk 0:03:00]}  Nc6 {[%clk 0:02:59]} 7. O-O {[%clk 0:03:00]}  h6 {[%clk 0:02:56]} 8. Re1 {[%clk 0:02:57]}  Qc7 {[%clk 0:02:55]} 9. h3 {[%clk 0:02:53]}  Nge7 {[%clk 0:02:54]} 10. a3 {[%clk 0:02:50]}  c4 {[%clk 0:02:52]} 11. Bc2 {[%clk 0:02:47]}  O-O-O {[%clk 0:02:51]} 12. Bf4 {[%clk 0:02:39]}  Kb8 {[%clk 0:02:45]} 13. Nbd2 {[%clk 0:02:34]}  Na5 {[%clk 0:02:44]} 14. a4 {[%clk 0:02:28]}  Nec6 {[%clk 0:02:39]} 15. Bg3 {[%clk 0:02:19]}  Be7 {[%clk 0:02:37]} 16. Nf1 {[%clk 0:02:12]}  Ka8 {[%clk 0:02:32]} 17. Ne3 {[%clk 0:02:12]}  g6 {[%clk 0:02:24]} 18. Nd2 {[%clk 0:02:00]}  h5 {[%clk 0:02:19]} 19. Qf3 {[%clk 0:01:40]}  Rhf8 {[%clk 0:02:13]} 20. Bf4 {[%clk 0:01:34]}  Rh8 {[%clk 0:02:07]} 21. Bh2 {[%clk 0:01:30]}  Rhf8 {[%clk 0:02:06]} 22. g4 {[%clk 0:01:21]}  hxg4 {[%clk 0:02:02]} 23. hxg4 {[%clk 0:01:22]}  Bg5 {[%clk 0:01:53]} 24. Kg2 {[%clk 0:01:22]}  Rh8 {[%clk 0:01:51]} 25. Rh1 {[%clk 0:01:21]}  Rh4 {[%clk 0:01:42]} 26. Bg3 {[%clk 0:01:21]}  Rxh1 {[%clk 0:01:43]} 27. Rxh1 {[%clk 0:01:21]}  Rf8 {[%clk 0:01:26]} 28. Rh7 {[%clk 0:01:21]}  Nxd4 {[%clk 0:00:05]} 29. cxd4 {[%clk 0:01:19]}  c3 {[%clk 0:00:06]} 30. bxc3 {[%clk 0:00:47]}  Qxc3 {[%clk 0:00:06]} 31. Rxf7 {[%clk 0:00:47]}  Rc8 {[%clk 0:00:05]} 32. Ndf1 {[%clk 0:00:36]}  Qxd4 {[%clk 0:00:03]} 33. Bxg6 {[%clk 0:00:33]}  Qxa4 {[%clk 0:00:02]} 34. Bf4 {[%clk 0:00:20]}  Nc4 {[%clk 0:00:02]} 35. Bxg5 {[%clk 0:00:18]}  Nxe3+ {[%clk 0:00:02]} 36. Bxe3 {[%clk 0:00:16]}  Rg8 {[%clk 0:00:02]} 37. Rf8+ {[%clk 0:00:13]}  Rxf8 {[%clk 0:00:02]} 38. Qxf8+ {[%clk 0:00:13]}  Bc8 {[%clk 0:00:02]} 39. Qxc8# {[%clk 0:00:14]} 1-0


[Site "https://www.chess.com"]